{"text_format":"1","workbook":"xlsx","n_sheets":3,"sheets":["Перечень","Обработка","после работы скрипта"],"not_rendered":{"charts":0,"images":1,"macros":1,"external_links":0,"defined_names":11,"comments":0,"pivot_tables":0},"unopened":[],"bounds":{"document_bytes":16777216,"sheet_cells":100000,"rows_first":2000,"rows_last":500,"rows_between":2000,"halvings":0,"cell_chars":16384,"cell_head_chars":4096},"cells_cut":0,"cells_raw":0,"read":"whole","date_system":"1900"}

{"sheet":"Перечень","index":0,"n_rows":59,"n_cols":15,"rows_kept":59,"cut":false,"hidden":false,"merged":[[45,0,45,7],[50,0,50,7],[52,0,52,7],[24,3,24,5],[16,3,16,5],[44,3,44,5],[40,0,40,7],[34,0,34,7],[0,0,0,9],[25,0,25,7],[30,0,30,7],[1,0,1,9],[2,0,2,9],[7,0,7,7],[4,2,4,6],[5,2,5,6],[3,0,3,9],[6,3,6,5],[10,3,10,5]]}
[null,null,null,null,null,null,null,null,null,null,null,null,"узел"]
[null,null,null,null,null,null,null,null,null,null,null,"Блок бокс технологический","A","C","E"]
[null,null,null,null,null,null,null,null,null,null,null,"Блок бокс подогрева","D","B"]
["Клим исп.  - УХЛ "]
["№ п/п","Поз. на тех. схеме ","Наименование ",null,null,null,null,"Ед. изм.","Кол-во","Назначение/примечание"]
[1,2,3,null,null,null,null,4,5,6]
[null,"A",null," 1 Узел переключений                ",null,null,null,null,1]
["                                                                                         Входной коллектор",null,null,null,null,null,null,null,0,0]
[1,"1-1","Кран шаровой ",null,"DN200 ","PN10,0 МПа",{"$f":"IF(AND(B9<>\"-\",B9<>\"\"),$A$4,\" \")","v":"Клим исп.  - УХЛ "},"шт.",1,"Вход газа"]
[{"$f":"A9+1","v":2},"1-4","Кран шаровой ",null,"DN25 ","PN8,0 МПа",{"$f":"IF(AND(B10<>\"-\",B10<>\"\"),$A$4,\" \")","v":"Клим исп.  - УХЛ "},"шт.",1,"Аварийный сброс газа по входу"]
[null,"B",null,"16 Система отбора проб",null,null,null,null,1]
[{"$f":"IF(ISBLANK(A11),1,A11+1)","v":1},"16-1","Кран шаровой ","ручной ","DN10 ","PN10,0 МПа",{"$f":"IF(AND(B12<>\"-\",B12<>\"\"),$A$4,\" \")","v":"Клим исп.  - УХЛ "},"шт.",1,"Вход газа на обводную линию"]
[{"$f":"A12+1","v":2},"16-2","Вентиль игольчатый ",null,null,null,"Клим исп.  - УХЛ ","шт.",1,"Вход в пробоотборник"]
[3,"16-3","Вентиль игольчатый ",null,null,null,{"$f":"IF(AND(B14<>\"-\",B14<>\"\"),$A$4,\" \")","v":"Клим исп.  - УХЛ "},"шт.",1,"Выход из баллона"]
[4,"16-4","Кран шаровой ","ручной ","DN10 ","PN10,0 МПа",{"$f":"IF(AND(B15<>\"-\",B15<>\"\"),$A$4,\" \")","v":"Клим исп.  - УХЛ "},"шт.",1,"Для подключения системы отбора проб"]
[5,"ПО16-1","Пробоотборник ","БДП7-0,7-9,8 ",null,null,"Клим исп.  - УХЛ ","шт.",1,"Забор проб"]
[null,"C",null,"2 Узел очистки                ",null,null,null,null,1]
[{"$f":"A16+1","v":6},"-","Баллон с азотом",null,null,null," ","шт.",1]
[{"$f":"A18+1","v":7},"РУ9.1","Редуктор баллонный",null,null,null,"Клим исп.  - УХЛ ","шт.",1]
[8,"РУ9.2","Редуктор баллонный",null,null,null,"Клим исп.  - УХЛ ","шт.",1]
[9,"9.1-1","Кран шаровой","ручной","DN25","PN1,6 МПа","Клим исп.  - УХЛ ","шт.",1,"-"]
[10,"9.2-1","Кран шаровой","ручной","DN25","PN1,6 МПа","Клим исп.  - УХЛ ","шт.",1,"-"]
[11,"9-1","Кран шаровой","ручной","DN25","PN1,6 МПа","Клим исп.  - УХЛ ","шт.",1,"-"]
[12,"КО9-1","Клапан","обратный","DN25","PN1,6 МПа","Клим исп.  - УХЛ ","шт.",1,"Препятствует обратному потоку"]
[null,"D",null,"3 Узел подогрева",null,null,null,null,1]
["                                                                                        1 линия (рабочая)",null,null,null,null,null,null,null,1]
[{"$f":"A24+1","v":13},"2.1-1","Клапан предохранительный ",null,"DN50 ","PN8,0 МПа",{"$f":"IF(AND(B27<>\"-\",B27<>\"\"),$A$4,\" \")","v":"Клим исп.  - УХЛ "},"шт.",1,"Вход узла очистки"]
[{"$f":"A27+1","v":14},"2.1-2","Кран шаровой ","ручной ","DN50 ","PN8,0 МПа","Клим исп.  - УХЛ ","шт.",1,"Выход узла очистки"]
[{"$f":"A28+1","v":15},"2.1-101","Кран шаровой ","ручной ","DN10 ","PN10,0 МПа","Клим исп.  - УХЛ ","шт.",1,"Для подключения датчика перепада давления"]
[16,"2.1-102","Кран шаровой ","ручной ","DN10 ","PN10,0 МПа",{"$f":"IF(AND(B30<>\"-\",B30<>\"\"),$A$4,\" \")","v":"Клим исп.  - УХЛ "},"шт.",1,"Для подключения датчика перепада давления"]
["                                                                                         2 линия (резервная)",null,null,null,null,null,null,null,1]
[{"$f":"A30+1","v":17},"2.2-1","Кран шаровой ","ручной ","DN50 ","PN8,0 МПа",{"$f":"IF(AND(B32<>\"-\",B32<>\"\"),$A$4,\" \")","v":"Клим исп.  - УХЛ "},"шт.",1,"Вход узла очистки"]
[{"$f":"A32+1","v":18},"2.2-2","Кран шаровой ","ручной ","DN50 ","PN8,0 МПа",{"$f":"IF(AND(B33<>\"-\",B33<>\"\"),$A$4,\" \")","v":"Клим исп.  - УХЛ "},"шт.",1,"Выход узла очистки"]
[19,"2.2-101","Кран шаровой ","ручной ","DN10 ","PN10,0 МПа",{"$f":"IF(AND(B34<>\"-\",B34<>\"\"),$A$4,\" \")","v":"Клим исп.  - УХЛ "},"шт.",1,"Для подключения датчика перепада давления"]
["                                                                                        Линия слива кондесата",null,null,null,null,null,null,null,1]
[{"$f":"A34+1","v":20},"2.1-106","Кран шаровой ","ручной ","DN50 ","PN8,0 МПа",{"$f":"IF(AND(B36<>\"-\",B36<>\"\"),$A$4,\" \")","v":"Клим исп.  - УХЛ "},"шт.",1,"Слив продуктов очистки"]
[{"$f":"A36+1","v":21},"2.2-106","Кран шаровой ","ручной ","DN50 ","PN8,0 МПа",{"$f":"IF(AND(B37<>\"-\",B37<>\"\"),$A$4,\" \")","v":"Клим исп.  - УХЛ "},"шт.",1,"Слив продуктов очистки"]
[{"$f":"A37+1","v":22},"2.1-107","Клапан манометрический",null,null,null,"Клим исп.  - УХЛ ","шт.",1,"Для подключения манометра"]
[{"$f":"A38+1","v":23},"РУ1-1","Клапан регулирующий","с ручным приводом","DN25","PN6,3 МПа","Клим исп.  - УХЛ ","шт.",1,"Регулирование давления на линии сброса конденсата ГРС"]
[24,"2.1-108","Клапан манометрический",null,null,null,"Клим исп.  - УХЛ ","шт.",1,"Для подключения манометра"]
["                                                                                       Система питания импульсным газом",null,null,null,null,null,null,null,1]
[{"$f":"A40+1","v":25},"-","Вставка диэлектрическая",null,null,null," ","шт.",1,"Обвязка пневмоприводов"]
[{"$f":"A42+1","v":26},"8.2-101","Кран шаровой","ручной","DN10","PN10,0 МПа","Клим исп.  - УХЛ ","шт.",1,"Обвязка пневмоприводов"]
[{"$f":"A43+1","v":27},"8.2-102","Кран шаровой","ручной","DN10","PN10,0 МПа","Клим исп.  - УХЛ ","шт.",1,"Обвязка пневмоприводов"]
[null,"E",null,"4 Узел редуцирования",null,null,null,null,1]
["                                                                                        1 линия (рабочая)",null,null,null,null,null,null,null,1]
[{"$f":"A44+1","v":28},"3.1-1","Кран шаровой ","ручной ","DN50 ","PN8,0 МПа",{"$f":"IF(AND(B47<>\"-\",B47<>\"\"),$A$4,\" \")","v":"Клим исп.  - УХЛ "},"шт.",1,"Вход на теплообменник"]
[{"$f":"A47+1","v":29},"3.1-2","Кран шаровой ","ручной ","DN50 ","PN8,0 МПа",{"$f":"IF(AND(B48<>\"-\",B48<>\"\"),$A$4,\" \")","v":"Клим исп.  - УХЛ "},"шт.",1,"Выход с теплообменника"]
[{"$f":"A48+1","v":30},"3.1-101","Кран шаровой ","ручной ","DN10 ","PN10,0 МПа",{"$f":"IF(AND(B49<>\"-\",B49<>\"\"),$A$4,\" \")","v":"Клим исп.  - УХЛ "},"шт.",1,"Настройка предохранительного клапана"]
[{"$f":"A49+1","v":31},"3.1-102","Кран шаровой ","ручной ","DN10 ","PN10,0 МПа",{"$f":"IF(AND(B50<>\"-\",B50<>\"\"),$A$4,\" \")","v":"Клим исп.  - УХЛ "},"шт.",{"$f":"I49","v":1},"Для подключения ДМ"]
["                                                                                        2 линия (резервная)",null,null,null,null,null,null,null,1]
[{"$f":"A50+1","v":32},"3.2-1","Кран шаровой ","ручной ","DN50 ","PN8,0 МПа",{"$f":"IF(AND(B52<>\"-\",B52<>\"\"),$A$4,\" \")","v":"Клим исп.  - УХЛ "},"шт.",1,"Вход на теплообменник"]
["                                                                                       Система питания импульсным газом",null,null,null,null,null,null,null,1]
[{"$f":"A52+1","v":33},"-","Вставка диэлектрическая",null,null,null,{"$f":"IF(AND(B54<>\"-\",B54<>\"\"),$A$4,\" \")","v":" "},"шт.",1,"Обвязка пневмоприводов"]
[{"$f":"A54+1","v":34},"8.3-101","Кран шаровой","ручной","DN10","PN10,0 МПа","Клим исп.  - УХЛ ","шт.",1,"Обвязка пневмоприводов"]
[{"$f":"A55+1","v":35},"8.3-102","Кран шаровой","ручной","DN10","PN10,0 МПа","Клим исп.  - УХЛ ","шт.",1,"Обвязка пневмоприводов"]
[36,"8.3-103","Кран шаровой","ручной","DN10","PN10,0 МПа","Клим исп.  - УХЛ ","шт.",1,"Подача импульсного газа"]
[37,"8.3-104","Кран шаровой","ручной","DN10","PN10,0 МПа","Клим исп.  - УХЛ ","шт.",1,"Подача импульсного газа"]
[38,"8.3-105","Кран шаровой","ручной","DN10","PN10,0 МПа","Клим исп.  - УХЛ ","шт.",1,"Подача импульсного газа"]

{"sheet":"Обработка","index":1,"n_rows":4,"n_cols":6,"rows_kept":4,"cut":false,"hidden":false,"merged":[]}
[]
[]
["№ п/п","Поз. на тех. схеме ","Наименование ","Ед. изм.","Кол-во","Назначение/примечание"]
[1,"2",3,4,5,6]

{"sheet":"после работы скрипта","index":2,"n_rows":59,"n_cols":10,"rows_kept":59,"cut":false,"hidden":false,"merged":[[14,2,14,6],[7,2,7,6],[8,2,8,6],[5,0,5,9],[0,0,0,9],[1,0,1,9],[2,0,2,9],[3,2,3,6],[4,2,4,6],[6,2,6,6],[9,2,9,6],[10,2,10,6],[11,2,11,6],[12,2,12,6],[13,2,13,6],[26,2,26,6],[15,2,15,6],[16,2,16,6],[17,2,17,6],[18,0,18,7],[19,2,19,6],[20,2,20,6],[21,2,21,6],[22,2,22,6],[23,0,23,7],[24,2,24,6],[25,0,25,7],[38,2,38,6],[27,2,27,6],[28,2,28,6],[29,2,29,6],[30,2,30,6],[31,2,31,6],[32,0,32,9],[33,2,33,6],[34,0,34,7],[35,2,35,6],[36,2,36,6],[37,2,37,6],[50,2,50,6],[39,0,39,7],[40,2,40,6],[41,2,41,6],[42,2,42,6],[43,0,43,7],[44,2,44,6],[45,2,45,6],[46,2,46,6],[47,2,47,6],[48,2,48,6],[49,0,49,7],[57,2,57,6],[58,2,58,6],[51,2,51,6],[52,2,52,6],[53,2,53,6],[54,2,54,6],[55,2,55,6],[56,2,56,6]]}
[]
[]
[]
["№ п/п","Поз. на тех. схеме ","Наименование ",null,null,null,null,"Ед. изм.","Кол-во","Назначение/примечание"]
[1,2,3,null,null,null,null,4,5,6]
["Блок бокс технологический"]
[2,"A","1 Узел переключений",null,null,null,null,null,1]
[1,"1-1","Кран шаровой   DN200  PN10,0 МПа Клим исп.  - УХЛ",null,null,null,null,"шт.",1,"Вход газа"]
[2,"1-4","Кран шаровой   DN25  PN8,0 МПа Клим исп.  - УХЛ",null,null,null,null,"шт.",1,"Аварийный сброс газа по входу"]
[9,"C","2 Узел очистки",null,null,null,null,null,1]
[10,"-","Баллон с азотом",null,null,null,null,"шт.",1]
[11,"РУ9.1","Редуктор баллонный    Клим исп.  - УХЛ",null,null,null,null,"шт.",1]
[12,"РУ9.2","Редуктор баллонный    Клим исп.  - УХЛ",null,null,null,null,"шт.",1]
[13,"9.1-1","Кран шаровой ручной DN25 PN1,6 МПа Клим исп.  - УХЛ",null,null,null,null,"шт.",1,"-"]
[14,"9.2-1","Кран шаровой ручной DN25 PN1,6 МПа Клим исп.  - УХЛ",null,null,null,null,"шт.",1,"-"]
[15,"9-1","Кран шаровой ручной DN25 PN1,6 МПа Клим исп.  - УХЛ",null,null,null,null,"шт.",1,"-"]
[16,"КО9-1","Клапан обратный DN25 PN1,6 МПа Клим исп.  - УХЛ",null,null,null,null,"шт.",1,"Препятствует обратному потоку"]
[33,"E","4 Узел редуцирования   Клим исп.  - УХЛ",null,null,null,null,null,1]
["                                                                                        1 линия (рабочая)",null,null,null,null,null,null,null,1]
[34,"3.1-1","Кран шаровой  ручной  DN50  PN8,0 МПа Клим исп.  - УХЛ",null,null,null,null,"шт.",1,"Вход на теплообменник"]
[35,"3.1-2","Кран шаровой  ручной  DN50  PN8,0 МПа Клим исп.  - УХЛ",null,null,null,null,"шт.",1,"Выход с теплообменника"]
[36,"3.1-101","Кран шаровой  ручной  DN10  PN10,0 МПа Клим исп.  - УХЛ",null,null,null,null,"шт.",1,"Настройка предохранительного клапана"]
[37,"3.1-102","Кран шаровой  ручной  DN10  PN10,0 МПа Клим исп.  - УХЛ",null,null,null,null,"шт.",1,"Для подключения ДМ"]
["                                                                                        2 линия (резервная)",null,null,null,null,null,null,null,1]
[38,"3.2-1","Кран шаровой  ручной  DN50  PN8,0 МПа Клим исп.  - УХЛ",null,null,null,null,"шт.",1,"Вход на теплообменник"]
["                                                                                       Система питания импульсным газом",null,null,null,null,null,null,null,1]
[39,"-","Вставка диэлектрическая",null,null,null,null,"шт.",1,"Обвязка пневмоприводов"]
[40,"8.3-101","Кран шаровой ручной DN10 PN10,0 МПа Клим исп.  - УХЛ",null,null,null,null,"шт.",1,"Обвязка пневмоприводов"]
[41,"8.3-102","Кран шаровой ручной DN10 PN10,0 МПа Клим исп.  - УХЛ",null,null,null,null,"шт.",1,"Обвязка пневмоприводов"]
[42,"8.3-103","Кран шаровой ручной DN10 PN10,0 МПа Клим исп.  - УХЛ",null,null,null,null,"шт.",1,"Подача импульсного газа"]
[43,"8.3-104","Кран шаровой ручной DN10 PN10,0 МПа Клим исп.  - УХЛ",null,null,null,null,"шт.",1,"Подача импульсного газа"]
[44,"8.3-105","Кран шаровой ручной DN10 PN10,0 МПа Клим исп.  - УХЛ",null,null,null,null,"шт.",1,"Подача импульсного газа"]
["Блок бокс подогрева"]
[17,"D","3 Узел подогрева",null,null,null,null,null,1]
["                                                                                        1 линия (рабочая)",null,null,null,null,null,null,null,1]
[18,"2.1-1","Клапан предохранительный   DN50  PN8,0 МПа Клим исп.  - УХЛ",null,null,null,null,"шт.",1,"Вход узла очистки"]
[19,"2.1-2","Кран шаровой  ручной  DN50  PN8,0 МПа Клим исп.  - УХЛ",null,null,null,null,"шт.",1,"Выход узла очистки"]
[20,"2.1-101","Кран шаровой  ручной  DN10  PN10,0 МПа Клим исп.  - УХЛ",null,null,null,null,"шт.",1,"Для подключения датчика перепада давления"]
[21,"2.1-102","Кран шаровой  ручной  DN10  PN10,0 МПа Клим исп.  - УХЛ",null,null,null,null,"шт.",1,"Для подключения датчика перепада давления"]
["                                                                                         2 линия (резервная)",null,null,null,null,null,null,null,1]
[22,"2.2-1","Кран шаровой  ручной  DN50  PN8,0 МПа Клим исп.  - УХЛ",null,null,null,null,"шт.",1,"Вход узла очистки"]
[23,"2.2-2","Кран шаровой  ручной  DN50  PN8,0 МПа Клим исп.  - УХЛ",null,null,null,null,"шт.",1,"Выход узла очистки"]
[24,"2.2-101","Кран шаровой  ручной  DN10  PN10,0 МПа Клим исп.  - УХЛ",null,null,null,null,"шт.",1,"Для подключения датчика перепада давления"]
["                                                                                        Линия слива кондесата",null,null,null,null,null,null,null,1]
[25,"2.1-106","Кран шаровой  ручной  DN50  PN8,0 МПа Клим исп.  - УХЛ",null,null,null,null,"шт.",1,"Слив продуктов очистки"]
[26,"2.2-106","Кран шаровой  ручной  DN50  PN8,0 МПа Клим исп.  - УХЛ",null,null,null,null,"шт.",1,"Слив продуктов очистки"]
[27,"2.1-107","Клапан манометрический    Клим исп.  - УХЛ",null,null,null,null,"шт.",1,"Для подключения манометра"]
[28,"РУ1-1","Клапан регулирующий с ручным приводом DN25 PN6,3 МПа Клим исп.  - УХЛ",null,null,null,null,"шт.",1,"Регулирование давления на линии сброса конденсата ГРС"]
[29,"2.1-108","Клапан манометрический    Клим исп.  - УХЛ",null,null,null,null,"шт.",1,"Для подключения манометра"]
["                                                                                       Система питания импульсным газом",null,null,null,null,null,null,null,1]
[30,"-","Вставка диэлектрическая",null,null,null,null,"шт.",1,"Обвязка пневмоприводов"]
[31,"8.2-101","Кран шаровой ручной DN10 PN10,0 МПа Клим исп.  - УХЛ",null,null,null,null,"шт.",1,"Обвязка пневмоприводов"]
[32,"8.2-102","Кран шаровой ручной DN10 PN10,0 МПа Клим исп.  - УХЛ",null,null,null,null,"шт.",1,"Обвязка пневмоприводов"]
[3,"B","16 Система отбора проб",null,null,null,null,null,1]
[4,"16-1","Кран шаровой  ручной  DN10  PN10,0 МПа Клим исп.  - УХЛ",null,null,null,null,"шт.",1,"Вход газа на обводную линию"]
[5,"16-2","Вентиль игольчатый     Клим исп.  - УХЛ",null,null,null,null,"шт.",1,"Вход в пробоотборник"]
[6,"16-3","Вентиль игольчатый     Клим исп.  - УХЛ",null,null,null,null,"шт.",1,"Выход из баллона"]
[7,"16-4","Кран шаровой  ручной  DN10  PN10,0 МПа Клим исп.  - УХЛ",null,null,null,null,"шт.",1,"Для подключения системы отбора проб"]
[8,"ПО16-1","Пробоотборник  БДП7-0,7-9,8    Клим исп.  - УХЛ",null,null,null,null,"шт.",1,"Забор проб"]